bitfinex-derivatives/quotes_ETHF0:USTF0_20251103
["timestamp","ask_amount","ask_price","bid_price","bid_amount"]
[1762129921513,0.46196,3896.8,3896.4,0.3985]
[1762129921709,0.80816079,3896.5,3896.4,0.3985]
[1762129922017,0.81024742,3896.5,3896.4,0.3985]
[1762129922218,0.25018663,3896.5,3896.4,0.3985]
[1762129923221,0.81025079,3896.5,3896.4,0.3985]
[1762129924616,0.00208663,3896.5,3896.4,0.3985]
[1762129924815,0.2554,3897.5,3896.5,0.0866]
[1762129925016,0.56019029,3897.4,3897.3,0.3964]
[1762129925323,0.56019029,3897.4,3897.1,9.061]
[1762129925324,0.98109029,3897.4,3897.1,9.061]
[1762129925525,0.56019029,3897.3,3897.1,9.061]
[1762129925821,1.44300029,3897.2,3897.1,9.061]
[1762129926212,0.6763,3897.0,3896.9,3.2078]
[1762129926409,0.6763,3897.0,3896.9,12.2678]
[1762129927120,0.6763,3897.0,3896.9,9.06]
[1762129927316,0.6763,3897.0,3896.9,12.2678]
[1762129927516,0.6763,3897.0,3896.9,12.6642]
[1762129927716,1.13824,3897.0,3896.9,3.2078]
[1762129928425,0.4209,3896.6,3896.5,3.2078]
[1762129929116,0.4209,3896.2,3896.1,3.2078]
[1762129929314,0.88293,3896.2,3896.1,3.2078]
[1762129929726,0.88298,3895.8,3895.7,3.2078]
[1762129930322,0.4209,3895.3,3895.2,3.2078]
[1762129930522,0.2554,3895.5,3895.2,13.12435]
[1762129931424,0.4209,3895.3,3895.2,13.12435]
[1762129931621,0.4209,3895.3,3895.2,12.6622]
[1762129933322,0.2554,3895.5,3895.2,12.6622]
[1762129933627,0.2554,3895.5,3895.2,13.12435]
[1762129933830,0.2554,3895.5,3895.4,0.3964]
[1762129939221,3.4632,3896.0,3895.8,0.46208]
[1762129939531,0.46202,3896.3,3896.2,0.2745]
[1762129939837,0.5909,3896.0,3895.6,12.2628]
[1762129940038,0.2324,3895.5,3895.4,0.46212]
[1762129940334,0.2324,3895.5,3895.4,9.79162]
[1762129940926,0.46209,3895.8,3895.7,0.2745]
[1762129941430,0.82059,3895.8,3895.6,0.4621]
[1762129942427,0.3585,3895.8,3895.6,0.4621]
[1762129942628,0.3585,3895.8,3895.6,3.6699]
[1762129942832,0.2324,3896.0,3895.7,0.73658]
[1762129943644,0.69446,3896.0,3895.7,0.73658]
[1762129945344,0.69446,3896.0,3895.8,0.46208]
[1762129946246,0.2324,3896.0,3895.8,0.46208]
[1762129946542,0.3695,3895.8,3895.7,0.46209]
[1762129946754,0.2324,3896.0,3895.8,0.69907]
[1762129947041,0.2324,3896.0,3895.9,0.237]
[1762129947235,0.79293914,3896.0,3895.9,0.237]
[1762129947850,0.2324,3896.0,3895.9,0.237]
[1762129948850,1.62460995,3896.0,3895.8,9.053]
[1762129949146,0.6019,3896.0,3895.8,9.51508]
[1762129950246,0.2324,3896.0,3895.9,0.237]
[1762129950443,0.56081302,3896.2,3896.1,0.237]
[1762129950648,0.46203,3896.3,3896.2,0.237]
[1762129950843,0.56079922,3896.3,3896.2,0.69903]
[1762129951049,0.56079922,3896.4,3896.2,0.69903]
[1762129951347,0.3695,3896.3,3896.2,0.69903]
[1762129951545,0.93029922,3896.3,3896.2,0.237]
[1762129951744,0.3695,3896.1,3896.0,3.2078]
[1762129951940,0.224,3896.0,3895.8,9.51508]
[1762129952650,0.3695,3895.9,3895.6,3.2078]
[1762129952842,0.3695,3895.9,3895.7,9.51309]
[1762129953344,0.224,3896.0,3895.9,0.69907]
[1762129953940,0.224,3896.0,3895.9,0.237]
[1762129954649,0.224,3896.0,3895.8,0.46207]
[1762129954947,0.5935,3896.0,3895.9,9.05]
[1762129956347,1.15489722,3896.0,3895.9,9.05]
[1762129956549,1.15489722,3896.0,3895.9,9.287]
[1762129957348,1.15489722,3896.0,3895.9,9.05]
[1762129957557,0.3695,3895.7,3895.6,3.2078]
[1762129957755,0.3695,3895.7,3895.6,12.2558]
[1762129958046,0.3695,3895.7,3895.6,3.2078]
[1762129958242,0.3695,3895.4,3895.3,2.0188]
[1762129958444,0.3695,3895.4,3894.8,0.00227178]
[1762129958445,0.3695,3894.9,3894.8,0.00227178]
[1762129958637,0.3695,3894.9,3894.8,9.05027178]
[1762129959453,0.3695,3894.9,3894.8,9.28727178]
[1762129959655,0.224,3895.0,3894.8,9.74946178]
[1762129959951,0.3695,3894.9,3894.8,9.28727178]
[1762129961547,0.3695,3894.9,3894.8,9.05027178]
[1762129962549,0.3695,3894.9,3894.8,0.00227178]
[1762129962751,0.3695,3894.9,3894.8,9.04927178]
[1762129963955,0.3695,3894.9,3894.8,0.00227178]
[1762129966156,0.9292266,3894.9,3894.8,0.00227178]
[1762129969457,0.5411,3894.0,3893.5,0.2026]
[1762129969658,0.46231,3893.9,3893.5,0.66495]
[1762129969957,0.46232,3893.8,3893.5,9.2476]
[1762129970158,0.46232,3893.8,3892.8,1.38490033]
[1762129970159,0.0542,3893.5,3892.6,1.84735033]
[1762129970351,3.2078,3893.2,3892.6,0.46480653]
[1762129970551,3.2078,3893.2,3892.7,0.46244]
[1762129970754,3.6702,3893.2,3892.6,0.00235653]
[1762129970953,0.46241,3893.1,3892.6,0.00235653]
[1762129971158,0.1928,3893.0,3892.6,0.00235653]
[1762129972257,0.1928,3893.0,3892.6,9.04735653]
[1762129973456,3.2078,3893.2,3892.7,0.46244]
[1762129973658,3.6702,3893.2,3892.7,0.46244]
[1762129974059,3.2078,3893.2,3892.6,9.04735653]
[1762129974355,0.46241,3893.1,3892.6,0.32135653]
[1762129976059,0.46241,3893.1,3892.6,0.78380653]
[1762129976461,0.46241,3893.1,3892.7,0.46244]
[1762129977263,0.46242,3893.0,3892.7,0.46244]
[1762129978554,0.46242,3893.0,3892.6,0.00235653]
[1762129978753,3.2078,3893.2,3892.6,0.46481653]
[1762129980062,0.46242,3893.0,3892.7,0.46244]
[1762129980262,0.46242,3893.0,3892.6,0.46480653]
[1762129980764,3.2078,3893.2,3892.8,0.78143]
[1762129981358,3.2078,3893.2,3893.1,0.319]
[1762129981758,3.5561,3893.2,3893.1,0.319]
[1762129982063,3.5561,3893.2,3893.0,0.66501]
[1762129982262,0.3483,3893.1,3892.8,0.46243]
[1762129982565,0.3483,3893.1,3892.9,0.46242]
[1762129982762,0.3483,3893.0,3892.9,0.46242]
[1762129983663,0.3483,3893.0,3892.9,0.78142]
[1762129984249,0.3483,3893.0,3892.9,0.319]
[1762129985160,0.3483,3893.0,3892.8,0.46243]
[1762129985356,0.3483,3892.9,3892.8,0.46243]
[1762129986363,3.2078,3893.2,3892.6,0.00235653]
[1762129986364,0.3483,3892.7,3892.6,0.00235653]
[1762129986559,3.5561,3892.7,3892.6,0.00235653]
[1762129991261,4.11403589,3892.7,3892.6,0.00235653]
[1762129998163,3.76573589,3892.7,3891.5,3.2078]
[1762129998360,0.347,3891.1,3891.0,3.2078]
[1762129998666,3.2078,3891.9,3891.3,0.46261]
[1762129998667,0.46256,3891.8,3891.3,0.46261]
[1762129998864,0.46259,3891.6,3891.1,0.46263]
[1762129999060,0.56018989,3891.5,3891.3,0.46261]
[1762129999263,0.347,3891.6,3891.5,0.46259]
[1762129999568,0.90787803,3891.6,3891.3,0.4652137]
[1762129999767,0.56087803,3891.5,3891.3,0.4652137]
[1762129999963,3.2078,3891.9,3891.8,0.3331]
[1762130000167,3.76869351,3891.9,3891.8,0.3331]
[1762130000365,4.11569351,3891.9,3891.8,0.3331]
[1762130001074,0.347,3891.8,3891.6,0.46258]
[1762130001369,0.56089351,3891.7,3891.6,0.79568]
[1762130001959,0.90789351,3891.7,3891.6,0.3331]
[1762130002263,0.80959,3891.6,3891.3,0.0026037]
[1762130002464,0.347,3891.4,3891.3,0.0026037]
[1762130002868,0.46256,3891.8,3891.5,0.46259]
[1762130003060,0.56064775,3891.7,3891.5,0.67979]
[1762130003261,3.2078,3891.9,3891.5,1.01289]
[1762130003262,0.56064775,3891.6,3891.5,1.01289]
[1762130005274,3.2078,3891.9,3891.8,0.80726]
[1762130005462,3.7681814,3891.9,3891.8,0.80726]
[1762130006568,4.1003814,3891.9,3891.8,0.80726]
[1762130007772,4.1003814,3891.9,3891.5,0.2172]
[1762130007773,0.3322,3891.6,3891.5,0.2172]
[1762130008071,0.3322,3891.4,3891.3,0.0026037]
[1762130008271,0.89264507,3891.4,3891.3,0.3473037]
[1762130008468,0.56044507,3891.4,3891.3,0.3473037]
[1762130008767,3.2078,3891.9,3891.6,0.46257]
[1762130008970,0.56050278,3891.8,3891.6,0.46257]
[1762130009165,0.55917662,3891.7,3891.6,0.80727]
[1762130009670,0.89137662,3891.7,3891.6,0.80727]
[1762130010062,0.3322,3891.6,3891.5,0.2112]
[1762130010674,0.3322,3891.6,3891.5,0.5559]
[1762130011075,3.2078,3891.9,3891.5,0.5559]
[1762130011371,0.3322,3891.9,3891.8,0.3447]
[1762130011673,0.3322,3891.8,3891.7,0.46256]
[1762130012069,0.3322,3891.6,3891.5,0.46259]
[1762130012573,0.3322,3891.4,3891.3,0.4652137]
[1762130012767,0.3322,3891.4,3891.3,0.8099137]
[1762130013075,0.3322,3891.6,3891.5,0.46258]
[1762130014375,0.3322,3891.6,3891.4,0.4626]
[1762130016372,0.3322,3891.4,3891.3,0.0026037]
[1762130017372,3.54,3891.4,3891.3,0.0026037]
[1762130018974,0.3322,3890.8,3890.7,0.46268]
[1762130020076,0.3322,3890.8,3890.7,0.46486898]
[1762130020284,0.79488,3890.8,3890.7,0.00218898]
[1762130020580,0.3322,3889.8,3889.6,1.38490033]
[1762130020775,0.62658,3890.0,3889.5,3.2078]
[1762130020776,0.3322,3889.6,3889.5,3.2078]
[1762130021688,0.33424503,3889.6,3889.5,3.21015719]
[1762130021882,0.00204503,3889.6,3889.5,3.76605719]
[1762130029584,0.00204503,3889.6,3889.5,12.80505719]
[1762130032483,0.00204503,3889.6,3889.5,3.76605719]
[1762130032677,0.00204503,3889.6,3889.5,12.80505719]
[1762130039788,3.2078,3890.5,3890.4,0.79412]
[1762130039994,0.3183,3890.4,3890.0,0.1922]
[1762130040193,0.3183,3890.0,3889.7,2.0188]
[1762130040392,0.3183,3890.0,3889.8,9.037]
[1762130040591,0.3183,3890.0,3889.9,9.037]
[1762130040788,0.32020373,3890.0,3889.9,9.037]
[1762130041687,0.32020373,3890.0,3889.9,9.3684]
[1762130041886,0.00190373,3890.0,3889.9,9.3684]
[1762130042391,0.00190373,3890.0,3889.9,9.3674]
[1762130044488,0.00190373,3890.0,3889.9,0.3314]
[1762130045386,0.00190373,3890.0,3889.9,9.3674]
[1762130046285,0.32020373,3890.0,3889.9,9.3674]
[1762130046693,0.32020373,3890.0,3889.9,0.3314]
[1762130046891,0.32020373,3890.0,3889.9,9.3674]
[1762130047088,0.32020373,3890.0,3889.9,0.3314]
[1762130047391,0.88208919,3890.0,3889.9,0.3314]
[1762130051598,1.34485919,3890.0,3889.7,9.034]
[1762130051795,0.56188546,3889.9,3889.7,9.4968]
[1762130052196,0.56188546,3889.9,3889.7,0.4628]
[1762130052794,0.78109,3889.8,3889.6,0.46281]
[1762130052996,0.88018546,3889.7,3889.6,0.79421]
[1762130053698,0.3183,3889.6,3889.5,0.00235719]
[1762130053895,0.88018546,3889.6,3889.5,0.00235719]
[1762130060107,0.56188546,3889.6,3889.5,0.98098719]
[1762130060310,0.00190373,3890.0,3889.9,0.79228]
[1762130060511,0.56392786,3890.0,3889.9,0.3295]
[1762130064606,1.35129786,3890.0,3889.9,0.3295]
[1762130065006,0.88852786,3890.0,3889.9,0.3295]
[1762130065311,0.56392786,3890.0,3889.9,0.3295]
[1762130072419,0.85962786,3890.0,3889.9,0.3295]
[1762130074220,0.2957,3889.6,3889.5,0.00235719]
[1762130074414,4.06523889,3889.6,3889.5,0.00235719]
[1762130081322,0.85743889,3889.6,3889.5,0.49955719]
[1762130082322,4.06523889,3889.6,3889.5,0.49955719]
[1762130082516,4.06523889,3889.6,3889.5,0.30995719]
[1762130082718,4.06523889,3889.6,3889.5,0.00235719]
[1762130090912,4.06523889,3889.6,3889.5,0.46195719]
[1762130091110,4.06523889,3889.6,3889.5,0.28795719]
[1762130091320,4.06523889,3889.6,3889.5,0.00235719]
[1762130099728,4.06523889,3889.6,3889.5,0.46195719]
[1762130099930,4.06523889,3889.6,3889.5,0.00235719]
[1762130115143,3.76953889,3889.6,3889.5,0.90628719]
[1762130115439,3.76953889,3889.6,3889.5,0.44345719]
[1762130115743,0.56173889,3889.6,3889.5,0.44345719]
[1762130116938,0.56173889,3889.6,3889.5,2.46225719]
[1762130118742,3.20970373,3890.0,3889.9,0.72758]
[1762130118943,3.20970373,3890.0,3889.9,0.2648]
[1762130119142,3.47290373,3890.0,3889.9,0.2648]
[1762130123651,3.93568373,3890.0,3889.7,9.015]
[1762130123853,3.93568373,3890.0,3889.7,9.4778]
[1762130124252,3.93568373,3890.0,3889.8,0.46279]
[1762130124749,3.47290373,3890.0,3889.8,0.46279]
[1762130124949,0.26510373,3890.0,3889.8,0.46279]
[1762130125352,0.26510373,3890.0,3889.9,0.2648]
[1762130125652,0.00190373,3890.0,3889.9,0.2648]
[1762130128762,0.00190373,3890.0,3889.9,2.2836]
[1762130132961,3.2078,3891.1,3890.5,0.1496]
[1762130133155,3.864,3891.5,3891.1,0.46263]
[1762130133356,1.02014803,3891.4,3891.0,9.62324]
[1762130133557,0.2666,3891.1,3891.0,9.1606]
[1762130133864,0.26941793,3891.1,3891.0,9.1606]
[1762130134766,3.47721793,3891.1,3891.0,9.1606]
[1762130135455,3.21061793,3891.1,3891.0,9.4297]
[1762130135656,3.47721793,3891.1,3891.0,9.4297]
[1762130136960,3.21061793,3891.1,3891.0,9.4297]
[1762130139364,0.00281793,3891.1,3891.0,9.4297]
[1762130154489,0.25421793,3891.1,3890.5,0.1496]
[1762130154684,0.2514,3891.0,3890.6,9.003]
[1762130154881,0.2514,3891.0,3890.9,0.2541]
[1762130155185,0.2514,3891.0,3890.9,9.2561]
[1762130155376,0.46545793,3891.1,3890.9,9.2561]
[1762130155577,0.46545793,3891.1,3890.9,9.71876]
[1762130155977,0.46545793,3891.1,3891.0,9.002]
[1762130156682,0.2514,3890.7,3890.5,0.61231]
[1762130156879,3.4592,3890.7,3890.5,0.61231]
[1762130157087,0.55651296,3890.6,3890.5,0.61231]
[1762130157285,0.55651296,3890.6,3890.5,0.86641]
[1762130158087,1.27061296,3890.6,3890.5,0.2541]
[1762130158286,0.2514,3890.5,3890.4,9.002]
[1762130158585,0.80791296,3890.5,3890.4,9.2561]
[1762130158888,0.95611296,3890.5,3890.0,0.61237]
[1762130159084,0.2514,3890.2,3890.0,0.1496]
[1762130159282,0.2514,3890.0,3889.5,0.62067719]
[1762130159487,0.2514,3889.6,3889.5,0.00235719]
[1762130159793,0.80787421,3889.6,3889.5,0.00235719]
[1762130161186,0.55647421,3889.6,3889.5,0.40865719]
[1762130161388,3.2078,3889.9,3889.8,0.2541]
[1762130161690,3.76418794,3889.9,3889.8,0.2541]
[1762130162388,3.76418794,3889.9,3889.8,9.2551]
[1762130164192,3.2078,3889.9,3889.8,9.2551]
[1762130174899,3.2078,3889.9,3889.8,9.2521]
[1762130175898,0.46281,3889.6,3889.5,0.15455719]
[1762130176090,0.68581,3889.6,3889.5,9.00035719]
[1762130176492,0.68581,3889.6,3889.5,0.00235719]
[1762130178796,1.24125319,3889.6,3889.5,0.00235719]
[1762130179505,0.223,3888.6,3888.0,3.36]
[1762130179703,0.46296,3888.4,3888.0,0.6152]
[1762130180000,0.46296,3888.4,3888.1,8.997]
[1762130180700,3.2078,3888.7,3888.1,8.99937972]
[1762130181502,0.46295,3888.5,3888.1,8.99937972]
[1762130182102,0.223,3888.2,3888.1,0.00237972]
[1762130182405,0.68852829,3888.2,3888.1,0.00237972]
[1762130183095,0.22554829,3888.2,3888.1,0.00237972]
[1762130183598,0.22554829,3888.2,3888.1,0.22547972]
[1762130183599,0.00254829,3888.2,3888.1,0.22547972]
[1762130187008,0.22554829,3888.2,3888.1,0.22547972]
[1762130187199,0.00254829,3888.2,3888.1,0.22547972]
[1762130194307,3.2078,3888.7,3888.6,0.68953]
[1762130195514,3.21033989,3888.7,3888.6,0.68953]
[1762130195812,0.00253989,3888.7,3888.6,0.68953]
[1762130197006,3.21033989,3888.7,3888.6,0.68953]
[1762130197506,0.2198,3888.6,3888.5,9.1275]
[1762130197707,0.2198,3888.6,3888.5,9.1265]
[1762130197908,0.2198,3888.6,3888.5,9.3531]
[1762130198109,0.2198,3888.6,3888.5,0.3591]
[1762130198309,0.68274,3888.6,3888.4,9.45696]
[1762130198508,0.68274,3888.6,3888.5,0.1325]
[1762130198708,0.68274,3888.6,3888.5,0.3591]
[1762130199112,3.21033989,3888.7,3888.5,0.82204]
[1762130199303,3.21033989,3888.7,3888.6,0.2266]
[1762130201018,3.43013989,3888.7,3888.6,0.2266]
[1762130201818,3.43013989,3888.7,3888.5,0.1325]
[1762130202116,3.43013989,3888.7,3888.3,9.45596]
[1762130202117,0.68273,3888.6,3888.3,9.45596]
[1762130202517,0.2198,3888.5,3888.4,0.46295]
[1762130203119,0.2198,3888.5,3888.4,0.68955]
[1762130207226,0.7771403,3888.5,3888.4,0.68955]
[1762130210224,0.5573403,3888.5,3888.4,0.68955]
[1762130211323,3.21033989,3888.7,3888.6,0.69653]
[1762130211520,3.7680684,3888.7,3888.6,0.69653]
[1762130213224,3.7680684,3888.7,3888.6,0.2336]
[1762130213414,3.9973684,3888.7,3888.6,0.2336]
[1762130213617,3.7680684,3888.7,3888.6,0.2336]
[1762130215724,0.5602684,3888.7,3888.6,0.2336]
[1762130216426,0.7895684,3888.7,3888.6,0.2336]
[1762130218428,3.9973684,3888.7,3888.6,0.2336]
[1762130220931,3.7680684,3888.7,3888.6,0.2336]
[1762130221433,3.9973684,3888.7,3888.6,0.2336]
[1762130222833,3.9973684,3888.7,3888.5,0.59104]
[1762130223033,0.55772851,3888.6,3888.5,0.59104]
[1762130223331,0.55772851,3888.6,3888.5,0.82464]
[1762130223935,0.78702851,3888.6,3888.5,0.82464]
[1762130225426,0.78702851,3888.6,3888.5,0.46294]
[1762130226632,1.24996851,3888.6,3888.3,9.45396]
[1762130226830,0.46297,3888.3,3888.1,0.00237972]
[1762130227034,3.2078,3888.3,3888.2,9.2196]
[1762130227232,3.21033989,3888.7,3888.4,0.46295]
[1762130227436,1.02079705,3888.6,3888.4,0.46295]
[1762130227636,0.55785705,3888.5,3888.2,9.44897]
[1762130227936,0.55785705,3888.5,3888.3,0.46297]
[1762130228937,0.55785705,3888.5,3888.3,9.44897]
[1762130229444,0.69226,3888.4,3888.3,8.985]
[1762130229635,1.25011705,3888.4,3888.3,8.985]
[1762130230535,0.2293,3888.3,3888.1,0.00237972]
[1762130230837,0.78715705,3888.2,3888.1,0.00237972]
[1762130235340,0.55785705,3888.2,3888.1,0.23597972]
[1762130235546,0.77275705,3888.2,3888.1,0.00237972]
[1762130237243,0.55785705,3888.2,3888.1,0.22747972]
[1762130237540,3.2078,3888.3,3888.2,0.68808]
[1762130237745,3.76564057,3888.3,3888.2,0.68808]
[1762130239451,3.76564057,3888.3,3888.2,0.2251]
[1762130239651,3.76564057,3888.3,3888.2,0.68808]
[1762130242149,3.21033989,3888.7,3888.2,0.2251]
[1762130242350,3.21033989,3888.7,3888.6,0.2251]
[1762130242554,3.98303719,3888.7,3888.5,0.59254]
[1762130242752,0.2149,3888.4,3888.3,0.46296]
[1762130242956,0.2149,3888.2,3888.1,0.46536972]
[1762130243146,0.2149,3888.2,3888.1,0.69046972]
[1762130245351,3.21033989,3888.7,3888.3,0.46296]
[1762130245655,1.02080206,3888.6,3888.3,0.46296]
[1762130245855,0.55786206,3888.5,3888.3,0.46296]
[1762130246055,0.55786206,3888.4,3888.3,0.46296]
[1762130247057,0.55786206,3888.4,3888.3,0.68636]
[1762130248858,1.25462206,3888.4,3888.1,0.00237972]
[1762130249055,0.2338,3888.2,3888.1,0.00237972]
[1762130249259,0.79157435,3888.2,3888.1,0.00237972]
[1762130249956,0.3404,3887.5,3887.4,1.38490033]
[1762130250158,0.2338,3887.4,3887.3,1.38490033]
[1762130250661,0.2338,3887.4,3887.3,1.60830033]
[1762130251061,0.69685,3887.7,3887.3,1.3871497]
[1762130251267,0.2338,3887.7,3887.3,1.3871497]
[1762130251559,0.2338,3887.7,3887.5,0.46306]
[1762130251762,0.2338,3887.6,3887.3,0.46533937]
[1762130251961,0.2338,3887.6,3887.4,0.46307]
[1762130252156,0.2338,3887.5,3887.4,0.46307]
[1762130258176,0.2338,3887.4,3887.3,0.00224937]
[1762130258367,0.79182905,3887.4,3887.3,0.00224937]
[1762130258872,0.2338,3887.4,3887.3,0.00224937]
[1762130278274,0.7919557,3887.4,3887.3,0.00224937]
[1762130280679,3.2078,3887.9,3887.8,0.2267]
[1762130280885,4.001513,3887.9,3887.6,0.46305]
[1762130281187,0.2353,3887.7,3887.6,0.46305]
[1762130281380,0.793713,3887.7,3887.6,0.68975]
[1762130281585,0.558413,3887.7,3887.6,0.68975]
[1762130281778,3.2078,3887.9,3887.8,0.68973]
[1762130282084,4.00158849,3887.9,3887.6,0.46304]
[1762130282284,0.2353,3887.7,3887.6,0.46304]
[1762130282487,0.79378849,3887.7,3887.6,0.46304]
[1762130283982,0.2353,3887.4,3887.3,0.46533937]
[1762130284180,0.2353,3887.4,3887.3,0.00224937]
[1762130285483,0.2353,3887.4,3887.3,0.22894937]
[1762130286279,3.2078,3887.9,3887.4,0.46308]
[1762130286482,0.55818242,3887.8,3887.6,0.46304]
[1762130286681,0.55818242,3887.7,3887.6,0.68974]
[1762130286880,3.2078,3888.3,3887.5,0.1419]
[1762130287088,0.55823403,3888.2,3887.6,2.0188]
[1762130287281,0.55823403,3888.1,3887.6,2.0188]
[1762130287488,0.55823403,3888.0,3887.6,2.0188]
[1762130287688,3.2078,3888.3,3888.1,0.46299]
[1762130287989,0.79330013,3888.2,3888.1,0.46299]
[1762130288687,0.55800013,3888.2,3888.1,0.68969]
[1762130288884,3.21033989,3888.7,3888.6,0.68963]
[1762130289084,4.00393603,3888.7,3888.6,0.68963]
[1762130289389,4.00393603,3888.7,3888.6,0.46293]
[1762130289783,4.00393603,3888.7,3888.6,0.68963]
[1762130290685,3.76863603,3888.7,3888.6,0.68963]
[1762130290888,0.00253989,3888.7,3888.6,0.68963]
[1762130291185,0.23783989,3888.7,3888.6,0.46293]
[1762130291486,0.00253989,3888.7,3888.6,0.68963]
[1762130292186,0.23783989,3888.7,3888.6,0.2267]
[1762130292488,0.2353,3888.6,3888.3,0.46296]
[1762130292683,0.2353,3888.4,3888.3,0.46296]
[1762130292983,0.00253989,3888.7,3888.6,0.2267]
[1762130301494,0.00253989,3888.7,3888.6,2.2455]
[1762130307302,3.2078,3889.3,3889.2,0.68196]
[1762130307808,3.2078,3889.8,3889.7,0.2191]
[1762130307996,3.2078,3889.8,3889.7,0.6819]
[1762130308196,3.21076244,3889.8,3889.7,0.6819]
[1762130310000,0.00296244,3889.8,3889.7,0.6819]
[1762130313305,3.4237,3890.7,3890.0,1.28912]
[1762130313494,3.2078,3890.7,3890.5,0.814]
[1762130313700,3.2078,3890.7,3890.5,0.3513]
[1762130313900,0.2159,3890.2,3890.1,9.42575]
[1762130314308,0.2189744,3890.2,3890.1,9.4286043]
[1762130314706,3.4267744,3890.2,3890.1,9.4286043]
[1762130315107,0.0030744,3890.2,3890.1,9.6477043]
[1762130317708,0.2189744,3890.2,3890.1,0.0028543]
[1762130318006,0.2189744,3890.2,3889.8,2.0188]
[1762130318007,0.2159,3889.9,3889.8,2.0188]
[1762130318208,0.2159,3889.3,3889.2,0.46285]
[1762130318610,0.2159,3889.3,3889.2,0.68195]
[1762130319013,0.2159,3889.3,3889.2,0.68388188]
[1762130321617,0.2159,3889.3,3889.2,0.22103188]
[1762130321813,0.2159,3889.3,3889.2,0.00193188]
[1762130322912,3.2078,3889.9,3889.2,0.00193188]
[1762130322913,0.46281,3889.7,3889.3,0.46284]
[1762130323506,0.2159,3889.4,3889.3,0.46284]
[1762130328812,0.2159,3889.3,3889.2,0.00193188]
[1762130331815,3.2078,3889.6,3889.4,0.2365]
[1762130332313,0.2272,3889.3,3889.2,0.00193188]
[1762130333911,0.78420236,3889.3,3889.2,0.00193188]
[1762130335714,0.78393966,3889.3,3889.2,0.00193188]
[1762130337222,0.46283,3889.5,3889.2,0.70129188]
[1762130337420,0.5566561,3889.4,3889.3,0.2365]
[1762130338318,0.7838561,3889.4,3889.3,0.2365]
[1762130339120,0.2272,3889.4,3889.3,0.2365]
[1762130339511,0.46283,3889.5,3889.3,0.2365]
[1762130339820,0.46283,3889.5,3889.4,0.2365]
[1762130340022,1.2467075,3889.5,3889.4,0.2365]
[1762130340220,1.2467075,3889.5,3889.2,0.46479188]
[1762130340519,0.69003,3889.5,3889.2,0.46479188]
[1762130340718,0.2272,3889.5,3889.4,0.46284]
[1762130341017,0.78389013,3889.5,3889.4,0.69934]
[1762130342718,0.55669013,3889.5,3889.4,0.69934]
[1762130342919,0.78389013,3889.5,3889.4,0.69934]
[1762130344220,0.55669013,3889.5,3889.4,0.69934]
[1762130344714,3.435,3889.6,3889.4,0.46283]
[1762130344916,3.2078,3889.6,3889.4,0.69933]
[1762130345119,3.2078,3889.6,3889.5,0.1332]
[1762130345321,3.76500217,3889.6,3889.5,0.1332]
[1762130345513,3.2078,3889.6,3889.5,0.3697]
[1762130346117,4.45501477,3889.6,3889.5,0.1332]
[1762130346425,0.2272,3889.5,3889.4,0.46283]
[1762130346723,0.78440477,3889.5,3889.4,0.46283]
[1762130347023,0.2272,3889.4,3889.3,2.0188]
[1762130347222,0.78440477,3889.4,3889.3,2.0188]
[1762130347519,0.69005,3889.3,3889.2,0.00193188]
[1762130347725,1.24725477,3889.3,3889.2,3.188e-05]
[1762130348023,1.24725477,3889.3,3888.0,1.51710033]
[1762130348024,8.55720477,3889.3,3888.0,0.1322]
[1762130348221,0.2272,3888.3,3888.2,0.46297]
[1762130348915,0.2272,3888.3,3888.2,0.46482022]
[1762130350525,3.2078,3888.8,3888.2,0.00185022]
[1762130350819,0.55758829,3888.7,3888.5,0.59614]
[1762130351126,0.55758829,3888.6,3888.5,0.83264]
[1762130351422,3.2078,3888.8,3888.6,0.46292]
[1762130351617,0.2272,3888.7,3888.6,0.46292]
[1762130352425,0.2272,3888.3,3888.2,0.46483022]
[1762130353125,0.2272,3888.3,3888.2,0.00185022]
[1762130363230,0.78448288,3888.3,3888.2,0.00185022]
[1762130369139,3.99228288,3888.3,3888.2,0.00185022]
[1762130379244,3.99228288,3888.3,3888.2,0.22605022]
[1762130379547,3.99228288,3888.3,3888.2,0.00185022]
[1762130380143,3.76508288,3888.3,3888.2,0.22605022]
[1762130380345,3.98428288,3888.3,3888.2,0.22605022]
[1762130381042,3.76508288,3888.3,3888.2,0.22605022]
[1762130382744,3.2078,3888.3,3888.2,0.22605022]
[1762130384441,0.46294,3888.6,3888.2,0.00185022]
[1762130384643,0.55886321,3888.5,3888.4,0.68715]
[1762130384838,3.2078,3888.7,3888.6,0.2242]
[1762130385037,3.99072185,3888.7,3888.6,0.2242]
[1762130387144,0.55892185,3888.7,3888.6,0.2242]
[1762130387348,3.2078,3889.1,3889.0,0.3445]
[1762130387540,3.2078,3889.1,3889.0,0.80738]
[1762130390446,3.2078,3889.5,3889.4,0.2143]
[1762130390638,3.2078,3889.5,3888.2,1.38675055]
[1762130390639,0.1304,3889.0,3888.2,1.38675055]
[1762130390843,0.224,3888.3,3888.2,0.00185022]
[1762130391245,0.224,3888.3,3888.2,0.21615022]
[1762130391846,3.67072,3888.8,3888.7,0.2143]
[1762130392052,0.55807491,3888.8,3888.7,0.2143]
[1762130392353,0.78207355,3888.8,3888.7,0.2143]
[1762130392550,0.224,3888.6,3888.2,0.00185022]
[1762130392945,0.224,3888.3,3888.2,0.00185022]
[1762130393246,3.98990954,3888.3,3888.2,0.00185022]
[1762130398251,3.98990954,3888.3,3888.2,0.21615022]
[1762130398754,3.98990954,3888.3,3888.2,0.00185022]
[1762130401246,3.98990954,3888.3,3886.7,1.38490033]
[1762130401247,0.224,3886.8,3886.7,1.38490033]
[1762130401446,0.224,3886.7,3886.0,0.1302]
[1762130401755,3.2078,3886.8,3886.7,0.2143]
[1762130401952,3.2078,3887.2,3887.1,0.2143]
[1762130402151,3.50371206,3887.2,3887.1,0.21732814]
[1762130402452,0.00276389,3887.2,3887.1,0.21732814]
[1762130404253,0.22676389,3887.2,3887.1,0.21732814]